Cogmind - Beta 15 @@@ ROGUE MODE // 2025.07.19 @ 06:47:50 Player: shapeshifter Result: Destroyed by S-10 Pest with Light Assault Rifle Performance ------------- Evolutions (0) 0 Regions Visited (4) 800 Robots Destroyed (44) 220 Value Destroyed (1120) 1120 Prototype IDs (1) 20 Alien Tech Used (0) 0 Bonus (0) 0 TOTAL SCORE: 2160 Bonus ------- None Cogmind --------- Core Integrity 0/250 Matter 290/300 Energy 80/100 System Corruption 4% Temperature Cool (0) Movement Rolling (95) Location -9/Recycling Parts ------- > --- POWER (1) -------- (None) > --- PROPULSION (2) --- Compact Wheel Armored Wheel > --- UTILITY (2) ------ Large Storage Unit Seismic Detector > --- WEAPON (2) ------- Improved Assault Rifle Improved Assault Rifle > --- INVENTORY (15) --- Armored Wheel Large Storage Unit Sensor Array Hardened Light Armor Plating Hardened Light Armor Plating Hardened Light Armor Plating Spread Laser Spread Laser Peak State ------------ > --- POWER ------------ Ion Engine > --- PROPULSION ------- Light Treads Light Treads > --- UTILITY ---------- Large Storage Unit Seismic Detector > --- WEAPON ----------- Improved Assault Rifle Improved Assault Rifle > --- INVENTORY -------- Ion Engine Large Storage Unit Hardened Light Armor Plating Hardened Light Armor Plating Hardened Light Armor Plating Improved Assault Rifle [Rating: 12] Favorites ----------- Power Ion Engine Engine Ion Engine Propulsion Light Treads Treads Light Treads Wheel Compact Wheel Utility Seismic Detector Device Seismic Detector Storage Large Storage Unit Weapon Improved Assault Rifle Energy Gun Medium Laser Ballistic Gun Improved Assault Rifle Launcher Grenade Launcher Build | -11 -10 -10 -10 -9 ------- Run | Yrd Mat Min Sub Rec Slots Evolved . | . . . . . Power . | . . . . . Propulsion . | . . . . . Utility . | . . . . . Weapon . | . . . . . Parts Attached 18 | 7 6 . 1 4 Power 2 | 1 1 . . . Engine 2 | 1 1 . . . Core . | . . . . . Reactor . | . . . . . Propulsion 5 | 2 . . . 3 Treads 2 | 2 . . . . Leg . | . . . . . Wheel 3 | . . . . 3 Hover . | . . . . . Flight . | . . . . . Utility 3 | 2 1 . . . Device 1 | 1 . . . . Storage 2 | 1 1 . . . Processor . | . . . . . Hackware . | . . . . . Protection . | . . . . . Artifact . | . . . . . Weapon 8 | 2 4 . 1 1 Energy Gun 3 | 2 . . . 1 Energy Cannon . | . . . . . Ballistic Gun 3 | . 2 . 1 . Ballistic Cannon . | . . . . . Launcher 2 | . 2 . . . Special Weapon . | . . . . . Impact Weapon . | . . . . . Slashing Weapon . | . . . . . Piercing Weapon . | . . . . . Special Melee Weapon . | . . . . . Unidentified Prototypes 1 | . 1 . . . Parts Lost 8 | . 2 . 2 4 Power 2 | . 1 . . 1 Propulsion 3 | . . . 1 2 Utility . | . . . . . Weapon 3 | . 1 . 1 1 Highest Loss Streak 2 | . 1 . 2 2 To Critical Strikes . | . . . . . Average Backups 6 | . 6 7 6 7 Power . | . . . . . Propulsion . | . . . . . Utility 4 | . 3 5 5 5 Weapon 1 | . 1 2 1 2 Tool/Special . | . . . . . Unused Backups 6 | . . . . 6 Power . | . . . . . Propulsion . | . . . . . Utility 5 | . . . . 5 Weapon 1 | . . . . 1 Tool/Special . | . . . . . Average Slot Usage (%) 93 | . 98 100 97 76 Engine 13 | . 13 14 14 13 Treads 21 | . 28 28 26 1 Device 14 | . 14 14 14 14 Storage 14 | . 14 14 14 14 Energy Gun 4 | . 5 . . 10 Ballistic Gun 15 | . 14 14 14 17 Launcher 7 | . 7 14 12 . Peak Build Rating 12 | 7 12 10 11 12 Average Rating 9 | 5 9 10 9 9 On Entrance 7 | . 7 10 10 11 Naked Turns . | . . . . . Heaviest Build 32 | 15 32 32 32 32 Greatest Support 40 | 40 40 40 40 32 Greatest Overweight (x) 10 | . . . 1 10 Average Overweight (x) . | . . . . 4 Largest Inventory Capacity 15 | 8 15 15 15 15 Average Capacity 14 | 6 13 15 15 15 Most Carried 9 | 4 9 7 7 9 Average Carried 6 | . 6 7 6 7 Final Capacity 15 | 8 15 15 15 15 Final Carried 8 | 1 7 7 6 8 Class Distribution -------------------- 100% | Mutant Dominant Class ---------------- Mutant | -10/Materials Mutant | -10/Mines Mutant | -10/Subcaves Mutant | -9/Recycling Resources | -11 -10 -10 -10 -9 ----------- Run | Yrd Mat Min Sub Rec Matter Collected 996 | 231 350 58 54 303 Remotely . | . . . . . Salvage Created 1376 | 67 588 83 81 557 Parts 64 | 4 26 9 5 20 Haulers Intercepted 1 | . 1 . . . Recyclers Shooed 6 | 1 . . . 5 Parts Field Recycled . | . . . . . Retrieved Matter . | . . . . . Parts Self-Destructed 13 | . . . 13 . Prevented . | . . . . . Kills | -11 -10 -10 -10 -9 ------- Run | Yrd Mat Min Sub Rec Combat Hostiles Destroyed 26 | . 15 5 3 3 Guns 10 | . 5 1 1 3 AOE 15 | . 9 4 2 . Classes Destroyed 11 | 2 5 1 1 2 Worker 2 | 1 1 . . . Builder 1 | . 1 . . . Tunneler 3 | 2 . 1 . . Hauler 1 | . 1 . . . Recycler 6 | . . . . 6 Operator 1 | . 1 . . . Turret 2 | . . . 2 . Watcher 2 | . 2 . . . Swarmer 4 | . . 3 1 . Grunt 19 | . 15 2 2 . Sentry 3 | . . . . 3 Best Kill Streak 5 | 2 5 4 3 4 Combat Bots Only 4 | . 4 3 2 3 Max Kills in Single Turn 2 | 1 2 2 1 1 Gunslinging . | . . . . . Exploded 2 | . 2 2 1 . Melee . | . . . . . Uniques/NPCs Destroyed . | . . . . . Combat | -11 -10 -10 -10 -9 -------- Run | Yrd Mat Min Sub Rec Hostile Shots Fired 183 | . 45 16 82 40 Missed 71 | . 16 5 39 11 Hits 112 | . 29 11 43 29 Projectile 112 | . 29 11 43 29 Critical Strikes 2 | . . 1 . 1 Damage Taken 1272 | . 401 178 305 388 Core 257 | . 50 19 79 109 Absorbed by Shields . | . . . . . Core Remaining (%) 100 | 100 . . . . Volleys Fired 99 | 7 52 6 13 21 Largest 2 | 2 2 2 2 2 Hottest 100 | 100 100 53 53 88 Shots Fired 184 | 14 95 11 23 41 Gun 148 | 14 72 6 15 41 Cannon . | . . . . . Launcher 36 | . 23 5 8 . Special . | . . . . . Kinetic 93 | . 48 6 15 24 Thermal 55 | 14 24 . . 17 Explosive 36 | . 23 5 8 . Electromagnetic . | . . . . . Robot Hit Streak 10 | 5 10 5 6 10 Robot Miss Streak 4 | 1 4 3 2 4 Penetration Max . | . . . . . Secondary Targets . | . . . . . Shots Hit Robots 116 | 10 53 5 14 34 Core Hits 90 | 3 30 9 11 37 Critical Kills . | . . . . . Critical Parts Destroyed 1 | . 1 . . . Critical Strikes 3 | . 3 . . . Burn 2 | . 2 . . . Destroy 1 | . 1 . . . Melee Attacks . | . . . . . Impact . | . . . . . Slashing . | . . . . . Piercing . | . . . . . Sneak Attacks . | . . . . . Combat Hostiles . | . . . . . Follow-up Attacks . | . . . . . Damage Inflicted 2803 | 125 1371 386 397 524 Guns 1526 | 125 670 41 166 524 Cannons . | . . . . . Explosions 1272 | . 696 345 231 . Melee . | . . . . . Ramming 5 | . 5 . . . Kinetic 941 | . 483 41 166 251 Thermal 585 | 125 187 . . 273 Explosive 1272 | . 696 345 231 . Electromagnetic . | . . . . . Impact . | . . . . . Slashing . | . . . . . Piercing . | . . . . . Highest Corruption 4 | . . . . 4 Average Corruption 1 | . . . . 1 Corruption Purged . | . . . . . Corruption Blocked . | . . . . . Overload Shots . | . . . . . Overflow Damage 19 | . 7 . 12 . Projectiles . | . . . . . Explosions 19 | . 7 . 12 . Melee . | . . . . . Knockbacks . | . . . . . Impact . | . . . . . Kinetic . | . . . . . Secondary . | . . . . . Self-Inflicted Damage 139 | . 78 61 . . Shots 7 | . 4 3 . . Rammed 2 | . 2 . . . Targets Rammed 2 | . 2 . . . Kicked . | . . . . . Crushed . | . . . . . Highest Temperature 298 | 78 298 30 1 243 Average Temperature 96 | 32 110 19 1 121 Received Heat Transfer 513 | . 183 63 231 36 Siege Activations . | . . . . . Martial Activations . | . . . . . Shielding Activations . | . . . . . Robots Disrupted . | . . . . . Combat Hostiles . | . . . . . Robots Corrupted . | . . . . . Combat Hostiles . | . . . . . Parts Fried . | . . . . . Impact Corruptions . | . . . . . Robots Melted 1 | . 1 . . . Combat Hostiles 1 | . 1 . . . Parts Melted . | . . . . . Heat Transferred 1398 | 370 703 . . 325 Parts Sabotaged . | . . . . . Parts Stolen . | . . . . . Parts Stripped . | . . . . . Power Chain Reactions . | . . . . . Alert | -11 -10 -10 -10 -9 ------- Run | Yrd Mat Min Sub Rec Maximum Alert Level 1 | . 1 . . . Low Security (%) 84 | 100 65 100 . 100 Level 1 15 | . 34 . . . Level 2 . | . . . . . Level 3 . | . . . . . Level 4 . | . . . . . Level 5 . | . . . . . High Security . | . . . . . Max Security . | . . . . . Peak Influence 318 | 5 318 185 . 60 Initial 105 | . 3 105 . 26 Average 72 | . 113 74 . 10 Influence Increases 1039 | 15 594 170 155 105 Destroy 0b10 Robot/C 560 | . 300 100 100 60 Destroy 0b10 Robot/NC 80 | 15 30 5 . 30 Destroy Leader 116 | . 86 20 10 . Successful Hack 13 | . 13 . . . Disable Machine 90 | . 60 15 . 15 Destroy Structure 135 | . 105 30 . . Lose Combat Pursuer 45 | . . . 45 . Influence Decreases 1039 | 10 329 390 150 160 Entered New Map 222 | . 2 165 26 29 Time Decay 766 | 10 307 225 104 120 Lost Part 51 | . 20 . 20 11 Squads Dispatched 5 | . 5 . . . Investigation 3 | . 3 . . . Extermination . | . . . . . Reinforcement 2 | . 2 . . . Assault . | . . . . . Garrison . | . . . . . Intercept . | . . . . . Searches Triggered . | . . . . . Construction Impeded . | . . . . . Haulers Reinforced . | . . . . . Active Scanning Responses . | . . . . . Cargo Convoy Interrupts . | . . . . . Stealth | -11 -10 -10 -10 -9 --------- Run | Yrd Mat Min Sub Rec Distress Signals . | . . . . . Communications Jammed . | . . . . . Distress Signals . | . . . . . Times Spotted 38 | . 20 5 7 6 Peak Tracking Total 3 | . 3 3 3 3 Tactical Retreats 2 | . . . 2 . Traps | -11 -10 -10 -10 -9 ------- Run | Yrd Mat Min Sub Rec Traps Triggered 2 | . 2 . . . Indirectly . | . . . . . Trap Hack Attempts . | . . . . . Triggered . | . . . . . Disarmed . | . . . . . Reprogrammed . | . . . . . Reused . | . . . . . Traps Extracted . | . . . . . Installed . | . . . . . Triggered . | . . . . . Machines | -11 -10 -10 -10 -9 ---------- Run | Yrd Mat Min Sub Rec Machines Disabled 9 | . 4 1 3 1 Max in Single Turn 3 | . 1 1 3 1 Machines Repaired . | . . . . . Machines Dismantled . | . . . . . Machines Sabotaged . | . . . . . Overloaded Fab Kills . | . . . . . Hacking | -11 -10 -10 -10 -9 --------- Run | Yrd Mat Min Sub Rec Machines Accessed 6 | . 3 . 1 2 Terminals 4 | . 3 . . 1 Fabricators . | . . . . . Repair Stations . | . . . . . Recycling Units 1 | . . . . 1 Scanalyzers . | . . . . . Garrison Access . | . . . . . Total Hacks 18 | . 9 . 4 5 Successful 10 | . 5 . 4 1 Failed 8 | . 4 . . 4 Catastrophic 2 | . 1 . . 1 Database Lockouts . | . . . . . Manual . | . . . . . Terminals 12 | . 9 . . 3 Fabricators . | . . . . . Repair Stations . | . . . . . Recycling Units 2 | . . . . 2 Scanalyzers . | . . . . . Garrison Access . | . . . . . Terminal Hacks 9 | . 5 . 4 . Record 5 | . 1 . 4 . Alert Level 1 | . 1 . . . Locate Traps 1 | . 1 . . . Dispatch Records 1 | . 1 . . . Recall Investigation 1 | . 1 . . . Fabricator Hacks . | . . . . . Repair Station Hacks . | . . . . . Recycling Unit Hacks 1 | . . . . 1 Retrieve Components 1 | . . . . 1 Scanalyzer . | . . . . . Garrison Access Hacks . | . . . . . Unauthorized Hacks . | . . . . . Terminals . | . . . . . Fabricators . | . . . . . Repair Stations . | . . . . . Recycling Units . | . . . . . Scanalyzers . | . . . . . Garrison Access . | . . . . . Data Cores Recovered . | . . . . . Used . | . . . . . Hacking Detections 4 | . 2 . . 2 Full Trace Events 3 | . 2 . . 1 Feedback Events . | . . . . . Feedback Blocked . | . . . . . Robot Schematics Acquired . | . . . . . Robots Built . | . . . . . Authchips . | . . . . . Time . | . . . . . Total Robot Build Rating . | . . . . . Part Schematics Acquired . | . . . . . Parts Built . | . . . . . Authchips . | . . . . . Time . | . . . . . Total Part Build Rating . | . . . . . Parts Repaired . | . . . . . Time . | . . . . . Parts Recycled . | . . . . . Recycled Matter . | . . . . . Retrieved Matter . | . . . . . Retrieved Components 7 | . . . . 7 Parts Scanalyzed . | . . . . . Part Schematics Acquired . | . . . . . Parts Damaged . | . . . . . Bothacking | -11 -10 -10 -10 -9 ------------ Run | Yrd Mat Min Sub Rec Used RIF Installer . | . . . . . Robots Hacked . | . . . . . Non-combat . | . . . . . Combat . | . . . . . Robot Hacks Applied . | . . . . . Relay Couplers Released . | . . . . . Fabnet Peak Effective % . | . . . . . Robots Rewired . | . . . . . Allies Hacked . | . . . . . Hacks Repelled . | . . . . . Allies | -11 -10 -10 -10 -9 -------- Run | Yrd Mat Min Sub Rec Total Allies . | . . . . . Largest Group . | . . . . . Highest-Rated Group . | . . . . . Highest-Rated Ally . | . . . . . Total Orders . | . . . . . Ally Attacks . | . . . . . Total Damage . | . . . . . Kills . | . . . . . Allies Corrupted . | . . . . . Allies Melted . | . . . . . Intel | -11 -10 -10 -10 -9 ------- Run | Yrd Mat Min Sub Rec Active Infowar (turns) 2508 | 9 1017 560 370 552 Seismic 2508 | 9 1017 560 370 552 Robot Analysis Total . | . . . . . Derelict Logs Recovered 1 | . . 1 . . Drone Launches . | . . . . . Drone Recoveries . | . . . . . Exploration | -11 -10 -10 -10 -9 ------------- Run | Yrd Mat Min Sub Rec Turns Passed 2609 | 110 1017 560 370 552 Spaces Moved 1273 | 53 529 340 202 149 Core 76 | 9 . . . 67 Treads 1135 | 44 529 340 202 20 Legs . | . . . . . Wheels 62 | . . . . 62 Hover . | . . . . . Flight . | . . . . . Fastest Speed 50 | 50 160 160 160 100 Average Speed 179 | 141 160 160 165 321 Slowest Speed 550 | 160 160 160 240 550 Overloaded Moves . | . . . . . Propulsion Burnouts . | . . . . . Robots Hopped . | . . . . . Potential Cave-ins . | . . . . . Cave-ins Triggered . | . . . . . Exploration Rate (%) 39 | 4 88 60 15 30 Regions Visited 4 Branch Regions 3 Pre-discovered Areas 1 | . . 1 . . Known Exits Taken . | . . . . . Unknown Exits Taken 4 | 1 1 1 1 . Scrap Searched . | . . . . . Spaces Dug 18 | . 18 . . . Terrain Destroyed 180 | . 112 36 32 . Melee . | . . . . . Projectile . | . . . . . AOE 180 | . 112 36 32 . Terrain Rammed . | . . . . . Walls Destroyed . | . . . . . Machines Disabled . | . . . . . Actions | -11 -10 -10 -10 -9 --------- Run | Yrd Mat Min Sub Rec Total 1418 | 74 603 345 215 181 Wait . | . . . . . Move 1269 | 52 528 339 201 149 Hop . | . . . . . Pick Up 25 | 8 11 . . 6 Fast Attach . | . . . . . Attach 14 | 7 2 . 1 4 Detach . | . . . . . Swap 6 | . 5 . . 1 Drop 3 | . 3 . . . Fire 99 | 7 52 6 13 21 Melee . | . . . . . Ram . | . . . . . Kick . | . . . . . Crush 2 | . 2 . . . Escape Stasis . | . . . . . Rewire . | . . . . . Trap . | . . . . . Miscellaneous . | . . . . . Route ------- -11/Scrapyard -10/Materials (discovered 5 exits: [*Mat x3] / [*Min] / *Sub) -10/Mines -10/Subcaves -9/Recycling History --------- Turn | Location | Event 6 | -11/Scrapyard | Discovered new exit (range 14) 111 | -11/Scrapyard | Entered Materials 304 | -10/Materials | Build established: Mutant 625 | -10/Materials | Discovered new exit (range 8) 675 | -10/Materials | Discovered new exit (range 16) 840 | -10/Materials | Discovered new exit (range 12) 1040 | -10/Materials | Discovered new exit (range 15) 1069 | -10/Materials | Discovered new exit (range 4) 1128 | -10/Materials | Entered Mines 1135 | -10/Mines | Met a Derelict bent on vengeance 1237 | -10/Mines | Learned location of Storage (-9) 1669 | -10/Mines | Discovered new exit (range 8) 1688 | -10/Mines | Entered Subcaves 1689 | -10/Subcaves | Approached by a straggling Scientist 1881 | -10/Subcaves | Visited Clippyterm 1886 | -10/Subcaves | Learned Factory trap positions 1900 | -10/Subcaves | A swath of the cavern ceiling suddenly collapsed 1995 | -10/Subcaves | Discovered new exit (range 14) 2030 | -10/Subcaves | Core integrity fell below 50% 2058 | -10/Subcaves | Entered Recycling 2059 | -9/Recycling | Met a Zionite searching for Scraptown 2127 | -9/Recycling | Core integrity fell below 20% 2610 | -9/Recycling | Destroyed by S-10 Pest with Light Assault Rifle Last Messages --------------- Unit. 02532_ R-06 Scavenger collects Com. Wheel. 02535_ Acquired Com. Wheel. 02536_ R-06 Scavenger collects Sml. Storage Unit. 02539_ Acquired 122 matter. 02540_ R-06 Scavenger destroyed. 02547_ Acquired 85 matter. 02548_ R-06 Scavenger destroyed. 02551_ Acquired 10 matter. 02554_ R-06 Scavenger collects Lgt. Ion Engine. 02555_ Connecting with Terminal... 02557_ R-06 Scavenger collects Com. Wheel. 02558_ R-06 Scavenger collects Sml. Storage Unit. 02584_ P-60 Hacker springs to life. 02594_ Ion Engine destroyed. 02594_ D-53 Grenadier springs to life. 02605_ Com. Wheel destroyed. 02607_ Acquired Arm. Wheel. Map ----- +----------------------------------------------------+ | ????# # #? ? ??????????? | | ????# # #?? ??????????????? | | ????# # #???? ??????????????? | | ????# # * #????? """ ????????????? | | ????# # ! #??????"""?????????????? | | ????# # ! +??????????????????????? | | ????# # % #??????????????????????? | | ????# # = #??????????????????????? | | ????# # ! ! #??????????????????????? | | ????# # [ ! #??????????????????????? | | ????# +[ [ #??????????????????????? | | ????# # ! #????? ? ??????????????? | | ????# #######/######???? ??????????????? | | ????# #????????? ""??????????????? | | ????######## #???????? ""??????????????? | | ???????????# #???????? """?????????????? | | ???????????# #??????? ????????????? | | ???????????# #????### ?????????????? | | ???????????#ps##### ?????????????? | | ???????????# #????????????????????? | | ???????????# #????????????????????? | | ???????????# #????????????????????? | | ???????????# #????????????????????? | | ???????????# +????????????????????? | | ???????????# #????????????????????? | | ???????????#####==@###????????????????????? | | ???????????????#= #??????????????????????? | | ???????????????#####??????????????????????? | | ??????????????????????????????????????????? | | ??????????????????????????????????????????? | | ??????????????????????????????????????????? | | | | | | | | | | | | | | | | | | | | | | | | | | | | | | | | | | | | | | | +----------------------------------------------------+ Best States ------------- Heat Dissipation 25 Energy Generation 10 Energy Capacity 250 Matter Stores 300 Matter Capacity 300 Sight Range 16 Terrain Scan Density 10 Evasion (%) 50 Recoil Reduction 2 Item Schematics ----------------- None Robot Schematics ------------------ None Fabricated ------------ Nothing Repaired ---------- Nothing Alien Tech Used ----------------- None Achievements -------------- None Challenges ------------ None Game ------ Seed MasterBlastCharger Manual? 0 Play Time 00:15:11 Cumulative 11.4 hours Start 2025.07.19 @ 06:34:34 End 2025.07.19 @ 06:47:50 Sessions 1 Manual Loads 0 Difficulty Rogue Special Mode None Game No. 33 Rogue 33 Adventurer 0 Explorer 0 Win Type - Total 0 Types 0/0/0/0/0/0/0/0/0/0 Lore% 14 Gallery% 15 Achievement% 12 Wizard Run 0 Options --------- Layout 1 ASCII 0 Keyboard 0 Movement Mouse Keybinds 0 Fullscreen 1 Font 32/SmallcapsGlow Map View 50x35 Zoom Use 0% Tactical HUD 1 Map Filters NONE Filters NONE Steam 1 RUN: b7e4437d-d26b-4920-b84b-476023021fb4